Cogmind - Beta 17.1 @@@ ROGUE MODE // 2026.09.21 @ 00:04:21 Player: OBLIQUE Result: Destroyed by as-68169 with Assembled Gauss Rifle Performance ------------- Evolutions (3) 1500 Regions Visited (13) 2600 Robots Destroyed (103) 515 Value Destroyed (4659) 4659 Prototype IDs (44) 880 Alien Tech Used (0) 0 Bonus (3456) 3456 TOTAL SCORE: 13610 Bonus ------- High Alert Combat Kills 130 Follower Combat Kills 285 Entered Garrisons 400 Aligned with FarCom 300 Met Imprinter 300 Was Imprinted 300 Destroyed Z-Imprinter 1000 Triggered Deep Caves Wall 500 Acquired ECA 300 Friendly Fire -59 Cogmind --------- Core Integrity 0/700 Matter 300/300 Energy 28/100 System Corruption 0% Temperature Cool (0) Movement Core (50) Location -7/Deep Caves Parts ------- > --- POWER (1) -------- (None) > --- PROPULSION (2) --- (None) > --- UTILITY (8) ------ (None) > --- WEAPON (2) ------- (None) > --- INVENTORY (5) ---- High-capacity Storage Unit Advanced Phase Shifter YOLO Cannon RU-N14's Throwing Claymores (5) Peak State ------------ > --- POWER ------------ Deuterium Engine > --- PROPULSION ------- Medium Treads Improved Medium Treads > --- UTILITY ---------- Experimental Heat Sink Experimental Heat Sink Huge Storage Unit Zionite Biocell Advanced Weight Redist. System Weapon Cycler Zionite Weapon Casing Hardlight Generator > --- WEAPON ----------- YOLO Cannon > --- INVENTORY -------- Makeshift Power Source Medium Treads Wheel Compact Wheel Experimental Heat Sink High-capacity Storage Unit Huge Storage Unit Zionite Biocell High-capacity Matter Pod Encrypted Comm Array Energy Filter Weapon Cycler Advanced Phase Shifter Recalibrator Zionite Laser-M Zionite Laser-M AWS/Thermal Gauss Rifle Improved Datajack RU-N14's Throwing Claymores RU-N14's Throwing Claymores RU-N14's Throwing Claymores RU-N14's Throwing Claymores Great Maul [Rating: 81] Favorites ----------- Power Light Fission Core Engine Ion Engine Power Core Light Fission Core Propulsion Compact Wheel Treads Light Treads Wheel Compact Wheel Hover Unit Zionite Glidesys II Utility Huge Storage Unit Device Advanced Weight Redist. System Storage Huge Storage Unit Processor Machine Analyzer Hackware Hacking Suite Protection Improved Light Armor Plating Weapon Assault Rifle Energy Gun Plasma Rifle Energy Cannon YOLO Cannon Ballistic Gun Assault Rifle Launcher Grenade Launcher Special Weapon RU-N14's Throwing Claymores Impact Weapon Great Maul Special Melee Weapon Improved Datajack Build | -11 -10 -10 -10 -9 -8 -8 -8 -8 -7 -7 -7 -7 -7 ------- Run | Yrd Mat Min Exi Min Mat Gar Mat Gar Fac Low Low Zio Dee Slots Evolved 6 | . . . . . 4 . . . 2 . . . . Power . | . . . . . . . . . . . . . . Propulsion . | . . . . . . . . . . . . . . Utility 6 | . . . . . 4 . . . 2 . . . . Weapon . | . . . . . . . . . . . . . . Parts Attached 114 | 6 10 . 4 2 19 17 12 5 12 5 4 2 16 Power 18 | 1 2 . . . 1 6 1 . 2 1 . . 4 Engine 9 | 1 2 . . . . 1 1 . . . . . 4 Core 9 | . . . . . 1 5 . . 2 1 . . . Reactor . | . . . . . . . . . . . . . . Propulsion 27 | 2 3 . 3 2 2 2 5 . 4 1 2 . 1 Treads 17 | 2 2 . 2 2 1 2 4 . 1 . 1 . . Leg . | . . . . . . . . . . . . . . Wheel 9 | . 1 . 1 . 1 . 1 . 3 1 1 . . Hover 1 | . . . . . . . . . . . . . 1 Flight . | . . . . . . . . . . . . . . Utility 40 | 1 4 . 1 . 7 4 4 3 4 2 1 1 8 Device 20 | . 1 . 1 . 3 2 3 . 3 1 1 . 5 Storage 5 | 1 2 . . . . . . . . . . . 2 Processor 2 | . . . . . 1 . 1 . . . . . . Hackware 2 | . . . . . 1 1 . . . . . . . Protection 11 | . 1 . . . 2 1 . 3 1 1 . 1 1 Artifact . | . . . . . . . . . . . . . . Weapon 29 | 2 1 . . . 9 5 2 2 2 1 1 1 3 Energy Gun 9 | . . . . . 1 3 . 1 2 . . . 2 Energy Cannon 1 | . . . . . . . . . . . 1 . . Ballistic Gun 13 | 2 1 . . . 6 . 2 1 . 1 . . . Ballistic Cannon . | . . . . . . . . . . . . . . Launcher 1 | . . . . . . 1 . . . . . . . Special Weapon 2 | . . . . . . . . . . . . 1 1 Impact Weapon 2 | . . . . . 1 1 . . . . . . . Slashing Weapon . | . . . . . . . . . . . . . . Piercing Weapon . | . . . . . . . . . . . . . . Special Melee Weapon 1 | . . . . . 1 . . . . . . . . Unidentified Prototypes 6 | . . . . . . . . . . . . 1 5 Parts Lost 47 | . . . . 1 3 9 4 3 . 1 2 . 24 Power 8 | . . . . . . 2 1 . . . . . 5 Propulsion 10 | . . . . . . 1 2 1 . 1 1 . 4 Utility 19 | . . . . . 1 3 . . . . 1 . 14 Weapon 10 | . . . . 1 2 3 1 2 . . . . 1 Highest Loss Streak 13 | . . . . 1 2 3 4 2 . 1 1 . 13 To Critical Strikes . | . . . . . . . . . . . . . . Average Backups 20 | 1 14 23 22 20 20 20 20 21 21 22 20 22 22 Power 1 | . 1 1 1 1 1 1 1 1 1 1 1 1 . Propulsion 4 | . 5 8 6 5 4 4 3 3 4 4 4 4 3 Utility 8 | . 6 9 8 7 7 8 7 9 10 10 9 8 7 Weapon 5 | . 1 3 5 6 6 6 6 6 4 4 3 5 8 Tool/Special . | . . . . . . . . . . . . . . Unused Backups 24 | . 3 . 1 . 7 . 1 . 1 . . 2 9 Power 3 | . 1 . . . 2 . . . . . . . . Propulsion 1 | . . . . . . . . . 1 . . . . Utility 12 | . 2 . 1 . 2 . 1 . . . . . 6 Weapon 6 | . . . . . 2 . . . . . . 2 2 Tool/Special 2 | . . . . . 1 . . . . . . . 1 Average Slot Usage (%) 95 | . 98 100 100 100 94 95 99 95 98 93 99 90 84 Engine 5 | . 14 14 14 14 3 1 1 9 1 . . . 4 Core 4 | . . . . . 5 7 7 . 5 7 7 7 1 Treads 7 | . 20 14 7 1 3 9 4 15 4 . . 4 5 Wheel 11 | . 7 14 20 26 14 8 13 2 10 15 14 10 9 Device 19 | . 1 . 7 14 23 18 20 13 23 30 30 30 34 Storage 9 | . 14 14 14 14 9 9 9 9 7 7 7 7 10 Processor 1 | . . . . . 4 . 6 . . . . . . Hackware 4 | . . . . . 7 11 18 14 6 . . . . Protection 11 | . 11 14 6 . 5 9 . 16 22 23 23 15 6 Energy Gun 3 | . . . . . . 5 7 2 6 6 6 5 7 Ballistic Gun 13 | . 28 28 28 28 15 10 9 11 6 1 6 5 1 Peak Build Rating 81 | 6 11 11 16 16 36 39 49 53 59 60 60 68 81 Average Rating 36 | 4 9 10 13 15 28 33 43 47 50 56 50 54 60 On Entrance 31 | . 6 10 11 16 16 35 39 42 52 55 59 50 52 Avg Prop Armor Cover (%) 9 | . 9 9 9 12 . 6 11 11 6 . . . . Naked Turns 3 | . . . . . . . . . . . . . 3 Heaviest Build 135 | 12 94 94 94 92 104 108 98 107 111 117 118 135 125 Greatest Support 67 | 40 40 16 32 32 51 51 65 65 56 41 35 67 58 Greatest Overweight (x) 8 | . 5 5 5 5 3 4 3 3 6 4 3 3 8 Average Overweight (x) 2 | . 2 5 3 2 2 1 1 1 3 2 3 2 3 Largest Inventory Capacity 25 | 8 25 25 25 25 25 25 25 25 25 25 25 25 25 Average Capacity 24 | 7 19 25 25 25 25 25 25 25 25 25 25 25 24 Most Carried 25 | 3 23 25 25 25 25 25 25 25 25 25 25 25 25 Average Carried 23 | 1 15 24 24 24 24 24 24 23 24 24 21 24 24 Final Capacity 25 | 8 25 25 25 25 25 25 25 25 25 25 25 25 5 Final Carried 25 | 3 22 25 25 25 25 25 22 24 24 25 22 25 5 Class Distribution -------------------- 39% | Mutant 37% | Scavenger-Mutant 9% | Skirmisher 6% | Hacker-Mutant 4% | Hacker-Skirmisher Dominant Class ---------------- Mutant | -10/Materials Mutant | -10/Mines Mutant | -10/Exiles Mutant | -9/Mines Skirmisher | -8/Materials Mutant | -8/Garrison Hacker-Skirmisher | -8/Materials Hacker-Mutant | -8/Garrison Scavenger-Mutant | -7/Factory Scavenger-Mutant | -7/Lower Caves Scavenger-Mutant | -7/Lower Caves Scavenger-Mutant | -7/Zion Scavenger-Mutant | -7/Deep Caves Resources | -11 -10 -10 -10 -9 -8 -8 -8 -8 -7 -7 -7 -7 -7 ----------- Run | Yrd Mat Min Exi Min Mat Gar Mat Gar Fac Low Low Zio Dee Matter Collected 3754 | 243 359 60 30 100 511 852 261 283 291 177 91 176 320 Remotely . | . . . . . . . . . . . . . . Salvage Created 4395 | . 615 92 . 83 501 831 257 400 466 451 152 . 547 Parts 205 | . 29 6 . 3 28 38 10 27 17 24 8 . 15 Haulers Intercepted 2 | . 1 . . . 1 . . . . . . . . Recyclers Shooed 2 | . . . . . 1 . 1 . . . . . . Parts Field Recycled . | . . . . . . . . . . . . . . Retrieved Matter . | . . . . . . . . . . . . . . Parts Self-Destructed 24 | . . . . . . . . . . 12 6 6 . Prevented 3 | . . . . . . . . . . 3 . . . Parts Restored . | . . . . . . . . . . . . . . Kills | -11 -10 -10 -10 -9 -8 -8 -8 -8 -7 -7 -7 -7 -7 ------- Run | Yrd Mat Min Exi Min Mat Gar Mat Gar Fac Low Low Zio Dee Combat Hostiles Destroyed 124 | . 14 2 . 2 12 21 5 15 5 6 5 . 37 Guns 76 | . 14 2 . 2 12 14 5 10 5 6 3 . 3 Cannons 4 | . . . . . . . . . . . . . 4 AOE 40 | . . . . . . 7 . 5 . . . . 28 Classes Destroyed 20 | . 6 . . . 3 . 1 1 2 2 . . 5 Worker 2 | . 1 . . . . . . . 1 . . . . Tunneler 1 | . . . . . . . . . 1 . . . . Hauler 2 | . 1 . . . 1 . . . . . . . . Recycler 2 | . . . . . . . . . 2 . . . . Mechanic 1 | . . . . . . . 1 . . . . . . Watcher 2 | . 1 . . . 1 . . . . . . . . Swarmer 22 | . 3 . . . 4 4 . 8 . . 3 . . Grunt 39 | . 9 2 . 2 3 10 3 3 4 3 . . . Duelist 2 | . . . . . 1 . 1 . . . . . . Sentry 11 | . . . . . 3 4 1 1 1 . 1 . . Hunter 5 | . . . . . 1 3 . . . 1 . . . Programmer 3 | . . . . . . . . 3 . . . . . Behemoth 1 | . . . . . . . . . . 1 . . . Subdweller 2 | . 2 . . . . . . . . . . . . Z-Technician 5 | . . . . . . . . . . . . . 5 Z-Light 2 | . . . . . . . . . . . . . 2 Packrat 2 | . . . . . . . . . . 2 . . . Master Thief 2 | . . . . . . . . . . 1 1 . . Assembler 1 | . . . . . . . . . . . . . 1 Assembled 32 | . . . . . . . . . . . . . 32 Golem 2 | . . . . . . . . . . . . . 2 Best Kill Streak 33 | . 4 1 . 2 5 4 2 5 3 3 3 . 33 Combat Bots Only 32 | . 4 1 . 2 5 4 2 5 2 3 3 . 32 Max Kills in Single Turn 12 | . 2 1 . 2 1 4 1 3 1 1 1 . 12 Gunslinging 1 | . 1 . . 1 . . . . . . . . . Exploded 12 | . . . . . . 4 . 3 . . . . 12 Melee . | . . . . . . . . . . . . . . Uniques/NPCs Destroyed 1 | . . . . . . . . . . . . . 1 Z-Imprinter (-7/Deep Caves) Combat | -11 -10 -10 -10 -9 -8 -8 -8 -8 -7 -7 -7 -7 -7 -------- Run | Yrd Mat Min Exi Min Mat Gar Mat Gar Fac Low Low Zio Dee Hostile Shots Fired 767 | . 58 30 . 15 69 124 62 63 56 29 52 . 209 Missed 244 | . 17 14 . 6 12 29 17 23 24 8 21 . 73 Hits 523 | . 41 16 . 9 57 95 45 40 32 21 31 . 136 Melee 17 | . . . . . 8 . 1 . . . 4 . 4 Projectile 506 | . 41 16 . 9 49 95 44 40 32 21 27 . 132 Critical Strikes 15 | . . . . . 5 7 . 2 . . . . 1 Damage Taken 8107 | . 452 208 . 122 906 1429 710 512 211 203 248 . 3106 Core 1335 | . 57 37 . 42 119 123 141 110 13 46 24 . 623 Absorbed by Shields 431 | . . . . . . 69 . 12 80 74 100 . 96 Redirected to Shielding 144 | . . . . . . . . . . . . . 144 Core Remaining (%) 51 | 100 . . . 45 . . . 10 . . . . . Volleys Fired 275 | . 43 12 . 7 46 73 30 13 15 7 9 4 16 Largest 2 | . 2 2 . 2 2 2 2 2 2 2 2 1 2 Hottest 134 | . 50 50 . 50 88 134 105 80 103 103 103 100 103 Shots Fired 612 | . 86 24 . 14 80 146 59 51 34 42 20 4 52 Gun 589 | . 86 24 . 14 80 142 59 47 34 42 19 1 41 Cannon 10 | . . . . . . . . . . . 1 3 6 Launcher 8 | . . . . . . 4 . 4 . . . . . Special 5 | . . . . . . . . . . . . . 5 Kinetic 411 | . 86 24 . 14 76 94 38 40 19 7 8 . 5 Thermal 181 | . . . . . 4 48 21 . 15 35 12 4 42 Explosive 13 | . . . . . . 4 . 4 . . . . 5 Electromagnetic 7 | . . . . . . . . 7 . . . . . Robot Hit Streak 16 | . 16 5 . 2 13 14 8 6 11 14 5 . 12 Robot Miss Streak 4 | . 3 3 . 2 3 4 4 2 1 1 3 . 4 Penetration Max 1 | . . . . . . . . 1 1 . . . . Secondary Targets 8 | . 4 1 . 1 1 1 . . . . . . . Max Gunslinging Chain 1 | . 1 1 . 1 1 1 . . . . . . . Autonomous 96 | . . . . . . . . 27 4 28 3 . 34 Shots Hit Robots 405 | . 62 14 . 7 60 81 38 36 25 37 10 . 35 Core Hits 216 | . 30 7 . 2 26 45 13 17 13 15 6 . 42 Critical Kills 3 | . . . . . . . . . . . 1 . 2 Critical Parts Destroyed 1 | . . . . . 1 . . . . . . . . Critical Strikes 11 | . . . . . 2 . 3 . 1 . 3 . 2 Burn 7 | . . . . . 1 . 3 . 1 . 2 . . Meltdown 3 | . . . . . . . . . . . 1 . 2 Destroy 1 | . . . . . 1 . . . . . . . . Melee Attacks 7 | . . . . . 1 4 . . 1 . . . 1 Impact 6 | . . . . . 1 3 . . 1 . . . 1 Slashing . | . . . . . . . . . . . . . . Piercing . | . . . . . . . . . . . . . . Sneak Attacks 1 | . . . . . . 1 . . . . . . . Combat Hostiles . | . . . . . . . . . . . . . . Follow-up Attacks . | . . . . . . . . . . . . . . Damage Inflicted 15005 | 1 867 289 . 113 981 1670 855 1415 581 913 452 . 6868 Guns 8032 | . 867 289 . 113 975 1280 855 1108 581 913 230 . 821 Cannons 834 | . . . . . . . . . . . 149 . 685 Explosions 5936 | . . . . . . 390 . 307 . . 73 . 5166 Melee . | . . . . . . . . . . . . . . Ramming 7 | 1 . . . . 6 . . . . . . . . Kinetic 5130 | . 867 289 . 113 930 913 509 1028 313 73 95 . . Thermal 7884 | . . . . . 45 367 346 . 268 840 357 . 5661 Explosive 1708 | . . . . . . 390 . 307 . . . . 1011 Electromagnetic 80 | . . . . . . . . 80 . . . . . Impact . | . . . . . . . . . . . . . . Slashing 196 | . . . . . . . . . . . . . 196 Piercing . | . . . . . . . . . . . . . . Highest Corruption 3 | . . . . . . . . 3 . . . . . Average Corruption 2 | . . . . . . . . 2 . . . . . Corruption Purged . | . . . . . . . . . . . . . . Corruption Blocked . | . . . . . . . . . . . . . . Effects 11 | . . . . . . . . 11 . . . . . Message Errors 2 | . . . . . . . . 2 . . . . . Matter Fused 6 | . . . . . . . . 6 . . . . . Heat Flow Errors 1 | . . . . . . . . 1 . . . . . Energy Discharges 1 | . . . . . . . . 1 . . . . . Misfires 1 | . . . . . . . . 1 . . . . . Overload Shots . | . . . . . . . . . . . . . . Overflow Damage 752 | . . . . . . . . 14 . . 24 . 714 Projectiles 133 | . . . . . . . . . . . . . 133 Explosions 619 | . . . . . . . . 14 . . 24 . 581 Melee . | . . . . . . . . . . . . . . Knockbacks . | . . . . . . . . . . . . . . Impact . | . . . . . . . . . . . . . . Kinetic . | . . . . . . . . . . . . . . Secondary . | . . . . . . . . . . . . . . Self-Inflicted Damage 441 | . . . . . . . . 16 . . 65 . 360 Shots 3 | . . . . . . . . 1 . . 1 . 1 Rammed 2 | 1 . . . . 1 . . . . . . . . Targets Rammed 2 | 1 . . . . 1 . . . . . . . . Kicked . | . . . . . . . . . . . . . . Crushed . | . . . . . . . . . . . . . . Highest Temperature 279 | . 16 29 . 18 65 144 279 197 31 112 103 . 27 Average Temperature 49 | . 5 15 . 7 23 38 119 47 14 43 42 . 13 Received Heat Transfer 2475 | . 177 114 . 69 234 730 387 114 72 45 24 . 509 Siege Activations . | . . . . . . . . . . . . . . Martial Activations . | . . . . . . . . . . . . . . Shielding Activations . | . . . . . . . . . . . . . . Robots Disrupted . | . . . . . . . . . . . . . . Combat Hostiles . | . . . . . . . . . . . . . . Robots Corrupted . | . . . . . . . . . . . . . . Combat Hostiles . | . . . . . . . . . . . . . . Parts Fried 2 | . . . . . . . . 2 . . . . . Impact Corruptions . | . . . . . . . . . . . . . . Robots Melted 4 | . . . . . . . . . . . 2 . 2 Combat Hostiles 4 | . . . . . . . . . . . 2 . 2 Parts Melted 17 | . 2 . . . 1 2 . . 4 . 4 . 4 Heat Transferred 7618 | . . . . . 185 777 1050 . 700 1125 647 . 3134 Parts Sabotaged . | . . . . . . . . . . . . . . Parts Stolen 2 | . . . . . . . . . . . 2 . . Parts Stripped . | . . . . . . . . . . . . . . Power Chain Reactions . | . . . . . . . . . . . . . . Alert | -11 -10 -10 -10 -9 -8 -8 -8 -8 -7 -7 -7 -7 -7 ------- Run | Yrd Mat Min Exi Min Mat Gar Mat Gar Fac Low Low Zio Dee Maximum Alert Level 3 | . . . . . . 3 2 2 2 . . . . Low Security (%) 60 | 100 100 100 . 100 100 14 . 23 9 . . . . Level 1 18 | . . . . . . 27 78 9 49 . . . . Level 2 19 | . . . . . . 48 21 67 41 . . . . Level 3 1 | . . . . . . 9 . . . . . . . Level 4 . | . . . . . . . . . . . . . . Level 5 . | . . . . . . . . . . . . . . High Security . | . . . . . . . . . . . . . . Max Security . | . . . . . . . . . . . . . . Peak Influence 910 | . 103 79 . 51 115 910 443 490 585 . . . . Initial 443 | . . 11 . . . 70 443 167 256 . . . . Average 183 | . 33 22 . 3 20 430 319 376 366 . . . . Influence Increases 3347 | . 357 201 . 51 418 930 188 353 584 130 135 . . Destroy 0b10 Robot/C 1840 | . 240 140 . 40 240 500 100 300 100 100 80 . . Destroy 0b10 Robot/NC 50 | . 15 . . . 10 . 5 . 20 . . . . Destroy Leader 308 | . 44 40 . 10 74 20 30 20 30 30 10 . . Allied During Kill 50 | . . 20 . . . 30 . . . . . . . Trap Triggered on 0b10 10 | . . . . . 10 . . . . . . . . Successful Hack 74 | . 24 . . . 20 10 5 . 15 . . . . Disable Machine 60 | . 15 . . . 15 15 . . 15 . . . . Anti-Garrison Action 650 | . . . . . . 250 . . 400 . . . . Destroy Structure 65 | . 4 1 . 1 4 30 3 18 4 . . . . Partial Spotted 15 | . 15 . . . . . . . . . . . . Lose Combat Pursuer 225 | . . . . . 45 75 45 15 . . 45 . . Influence Decreases 3347 | . 327 231 . 51 309 129 841 120 584 438 270 47 . Entered New Map 1114 | . . 19 . . . 39 467 90 234 182 36 47 . Time Decay 2002 | . 327 192 . 51 288 . 334 . 350 246 214 . . Lost Part 211 | . . . . . 21 90 40 30 . 10 20 . . Lost Ally 20 | . . 20 . . . . . . . . . . . Squads Dispatched 7 | . . . . . 2 . 1 . 4 . . . . Investigation 3 | . . . . . . . . . 3 . . . . Extermination 1 | . . . . . . . . . 1 . . . . Reinforcement 2 | . . . . . 1 . 1 . . . . . . Assault . | . . . . . . . . . . . . . . Garrison 1 | . . . . . 1 . . . . . . . . Intercept . | . . . . . . . . . . . . . . Searches Triggered . | . . . . . . . . . . . . . . Construction Impeded . | . . . . . . . . . . . . . . Haulers Reinforced . | . . . . . . . . . . . . . . Active Scanning Responses . | . . . . . . . . . . . . . . Cargo Convoy Interrupts . | . . . . . . . . . . . . . . Stealth | -11 -10 -10 -10 -9 -8 -8 -8 -8 -7 -7 -7 -7 -7 --------- Run | Yrd Mat Min Exi Min Mat Gar Mat Gar Fac Low Low Zio Dee Distress Signals 6 | . 3 . . . 1 . 2 . . . . . . Communications Jammed . | . . . . . . . . . . . . . . Distress Signals . | . . . . . . . . . . . . . . Times Spotted 175 | . 19 8 . 2 22 20 14 15 5 7 11 . 52 Peak Tracking Total 37 | . 4 2 . 2 6 6 4 6 2 3 3 . 37 Tactical Retreats 11 | . . . . . 3 2 3 1 . . 1 . 1 Traps | -11 -10 -10 -10 -9 -8 -8 -8 -8 -7 -7 -7 -7 -7 ------- Run | Yrd Mat Min Exi Min Mat Gar Mat Gar Fac Low Low Zio Dee Traps Triggered 5 | . . . . . . 3 . 2 . . . . . Indirectly . | . . . . . . . . . . . . . . Trap Hack Attempts 16 | . . . . . 6 10 . . . . . . . Triggered . | . . . . . . . . . . . . . . Disarmed . | . . . . . . . . . . . . . . Reprogrammed 4 | . . . . . 2 2 . . . . . . . Reused 1 | . . . . . 1 . . . . . . . . Traps Extracted . | . . . . . . . . . . . . . . Installed . | . . . . . . . . . . . . . . Triggered 1 | . . . . . 1 . . . . . . . . Machines | -11 -10 -10 -10 -9 -8 -8 -8 -8 -7 -7 -7 -7 -7 ---------- Run | Yrd Mat Min Exi Min Mat Gar Mat Gar Fac Low Low Zio Dee Machines Disabled 13 | . 1 . . . 1 4 . . 1 . . 3 3 Max in Single Turn 2 | . 1 . . . 1 1 . . 1 . . 1 2 Garrison Access 2 | . . . . . . . . . 2 . . . . Garrison Relay 3 | . . . . . . 3 . . . . . . . Machines Repaired . | . . . . . . . . . . . . . . Machines Dismantled . | . . . . . . . . . . . . . . Machines Sabotaged . | . . . . . . . . . . . . . . Overloaded Fab Kills . | . . . . . . . . . . . . . . Hacking | -11 -10 -10 -10 -9 -8 -8 -8 -8 -7 -7 -7 -7 -7 --------- Run | Yrd Mat Min Exi Min Mat Gar Mat Gar Fac Low Low Zio Dee Machines Accessed 28 | . 8 . 2 . 5 2 5 2 4 . . . . Terminals 20 | . 8 . . . 3 2 3 2 2 . . . . Fabricators . | . . . . . . . . . . . . . . Repair Stations . | . . . . . . . . . . . . . . Recycling Units . | . . . . . . . . . . . . . . Scanalyzers 2 | . . . . . 1 . 1 . . . . . . Garrison Access 4 | . . . . . 1 . 1 . 2 . . . . Total Hacks 59 | . 21 . 2 . 10 5 10 2 9 . . . . Successful 38 | . 10 . 2 . 9 2 9 . 6 . . . . Failed 20 | . 10 . . . 1 3 1 2 3 . . . . Catastrophic 4 | . 1 . . . . 1 . 1 1 . . . . Database Lockouts 1 | . 1 . . . . . . . . . . . . Manual 28 | . 12 . 1 . 5 1 3 . 6 . . . . Terminals 49 | . 21 . . . 7 5 7 2 7 . . . . Fabricators . | . . . . . . . . . . . . . . Repair Stations . | . . . . . . . . . . . . . . Recycling Units . | . . . . . . . . . . . . . . Scanalyzers 4 | . . . . . 2 . 2 . . . . . . Garrison Access 4 | . . . . . 1 . 1 . 2 . . . . Terminal Hacks 21 | . 7 . 2 . 2 2 6 . 2 . . . . Record 1 | . . . 1 . . . . . . . . . . Robot Analysis 5 | . 2 . . . . . 3 . . . . . . Prototype ID Bank 3 | . 1 . . . . . 2 . . . . . . Open Door 1 | . . . . . . 1 . . . . . . . Branch Access Points 1 | . . . . . . . . . 1 . . . . Emergency Access Points 1 | . . . . . . 1 . . . . . . . Terminal Index 3 | . 2 . . . 1 . . . . . . . . Alert Level 2 | . . . . . . . 1 . 1 . . . . Locate Traps 2 | . 1 . . . 1 . . . . . . . . Zone Layout 1 | . 1 . . . . . . . . . . . . Proto ID Catalog 1 | . . . 1 . . . . . . . . . . Fabricator Hacks . | . . . . . . . . . . . . . . Repair Station Hacks . | . . . . . . . . . . . . . . Recycling Unit Hacks . | . . . . . . . . . . . . . . Scanalyzer 4 | . . . . . 2 . 2 . . . . . . Insert Component 1 | . . . . . . . 1 . . . . . . Analyze 1 | . . . . . . . 1 . . . . . . Retrieve Study 2 | . . . . . 2 . . . . . . . . Garrison Access Hacks 2 | . . . . . 1 . 1 . . . . . . Unlock Access 2 | . . . . . 1 . 1 . . . . . . Unauthorized Hacks 11 | . 3 . . . 4 . . . 4 . . . . Terminals 9 | . 3 . . . 4 . . . 2 . . . . Assimilate 1 | . . . . . 1 . . . . . . . . Botnet 8 | . 3 . . . 3 . . . 2 . . . . Fabricators . | . . . . . . . . . . . . . . Repair Stations . | . . . . . . . . . . . . . . Recycling Units . | . . . . . . . . . . . . . . Scanalyzers . | . . . . . . . . . . . . . . Garrison Access 2 | . . . . . . . . . 2 . . . . Jam 2 | . . . . . . . . . 2 . . . . Data Cores Recovered . | . . . . . . . . . . . . . . Used . | . . . . . . . . . . . . . . Hacking Detections 20 | . 8 . . . 4 1 3 2 2 . . . . Full Trace Events 1 | . . . . . . . . . 1 . . . . Feedback Events . | . . . . . . . . . . . . . . Feedback Blocked . | . . . . . . . . . . . . . . Robot Schematics Acquired 4 | . . . . . . . . . . . . 4 . Robots Built . | . . . . . . . . . . . . . . Authchips . | . . . . . . . . . . . . . . Time . | . . . . . . . . . . . . . . Total Robot Build Rating . | . . . . . . . . . . . . . . Part Schematics Acquired 16 | . . . . . . . 1 . . . . 15 . Parts Built . | . . . . . . . . . . . . . . Authchips . | . . . . . . . . . . . . . . Time . | . . . . . . . . . . . . . . Total Part Build Rating . | . . . . . . . . . . . . . . Part Studies Acquired 2 | . . . . . 2 . . . . . . . . Parts Repaired . | . . . . . . . . . . . . . . Time . | . . . . . . . . . . . . . . Parts Recycled . | . . . . . . . . . . . . . . Recycled Matter . | . . . . . . . . . . . . . . Retrieved Matter . | . . . . . . . . . . . . . . Retrieved Components . | . . . . . . . . . . . . . . Parts Scanalyzed 1 | . . . . . . . 1 . . . . . . Part Schematics Acquired 1 | . . . . . . . 1 . . . . . . Parts Damaged . | . . . . . . . . . . . . . . Bothacking | -11 -10 -10 -10 -9 -8 -8 -8 -8 -7 -7 -7 -7 -7 ------------ Run | Yrd Mat Min Exi Min Mat Gar Mat Gar Fac Low Low Zio Dee Used RIF Installer . | . . . . . . . . . . . . . . Robots Hacked 1 | . . . . . . 1 . . . . . . . Non-combat . | . . . . . . . . . . . . . . Combat 1 | . . . . . . 1 . . . . . . . Robot Hacks Applied 1 | . . . . . . 1 . . . . . . . parse_system 1 | . . . . . . 1 . . . . . . . Relay Couplers Released 12 | . . . . . . 12 . . . . . . . Machine Destruction 12 | . . . . . . 12 . . . . . . . Fabnet Peak Effective % . | . . . . . . . . . . . . . . Robots Rewired . | . . . . . . . . . . . . . . Allies Hacked . | . . . . . . . . . . . . . . Hacks Repelled . | . . . . . . . . . . . . . . Allies | -11 -10 -10 -10 -9 -8 -8 -8 -8 -7 -7 -7 -7 -7 -------- Run | Yrd Mat Min Exi Min Mat Gar Mat Gar Fac Low Low Zio Dee Total Allies 13 | . . 3 . . . 1 . . . . . 9 . Largest Group 9 | . . 3 2 2 . 1 . . . . . 9 4 Highest-Rated Group 289 | . . 40 32 32 . 178 . . . . . 289 118 Highest-Rated Ally 178 | . . 16 16 16 . 178 . . . . . 41 31 Initial Warlord ECA Mod 7 | . . . . . . . 7 7 6 6 6 6 . Total Orders . | . . . . . . . . . . . . . . Ally Attacks 78 | . . 34 . 6 . 8 . . . . . . 30 Total Damage 1169 | . . 339 . 66 . 403 . . . . . . 361 Kills 16 | . . 5 . . . 4 . . . . . . 7 Allies Corrupted . | . . . . . . . . . . . . . . Allies Melted . | . . . . . . . . . . . . . . Intel | -11 -10 -10 -10 -9 -8 -8 -8 -8 -7 -7 -7 -7 -7 ------- Run | Yrd Mat Min Exi Min Mat Gar Mat Gar Fac Low Low Zio Dee Active Infowar (turns) 3560 | . 137 . 245 602 1411 181 744 163 77 . . . . Terrain 1630 | . 137 . . . 1030 179 211 . 73 . . . . Structural 2114 | . . . 245 602 1267 . . . . . . . . Traps 752 | . . . . . . . 522 153 77 . . . . Seismic 502 | . . . . . 502 . . . . . . . . Machine Analysis 1362 | . . . . . 765 54 533 10 . . . . . Robot Analysis Total 5 | . 2 . . . . . 3 . . . . . . Derelict Logs Recovered 6 | . . 1 . 1 . . . . . 2 1 1 . Drone Launches . | . . . . . . . . . . . . . . Drone Recoveries . | . . . . . . . . . . . . . . Exploration | -11 -10 -10 -10 -9 -8 -8 -8 -8 -7 -7 -7 -7 -7 ------------- Run | Yrd Mat Min Exi Min Mat Gar Mat Gar Fac Low Low Zio Dee Turns Passed 11729 | 82 1341 764 446 602 1411 1233 753 649 788 524 444 1872 820 Spaces Moved 6246 | 48 629 414 281 419 610 516 383 244 448 393 310 1154 397 Core 11 | 7 . . . . . . . . . . . . 4 Treads 983 | 41 273 . . . 23 152 38 160 37 . . 188 71 Legs . | . . . . . . . . . . . . . . Wheels 5252 | . 356 414 281 419 587 364 345 84 411 393 310 966 322 Hover . | . . . . . . . . . . . . . . Flight . | . . . . . . . . . . . . . . Fastest Speed 50 | 50 160 175 130 130 120 120 120 135 120 120 130 130 50 Average Speed 150 | 143 168 175 151 130 134 155 132 203 151 122 130 151 161 Slowest Speed 320 | 160 175 175 175 175 232 272 240 240 240 150 130 320 320 Overloaded Moves . | . . . . . . . . . . . . . . Propulsion Burnouts . | . . . . . . . . . . . . . . Robots Hopped . | . . . . . . . . . . . . . . Potential Cave-ins . | . . . . . . . . . . . . . . Cave-ins Triggered . | . . . . . . . . . . . . . . Exploration Rate (%) 54 | 4 83 82 70 79 47 63 31 32 8 62 48 89 63 Regions Visited 13 Branch Regions 7 Pre-discovered Areas 7 | . . 2 1 . . . . . . 2 . 2 . Known Exits Taken 3 | . . . . . 1 . 1 . 1 . . . . Unknown Exits Taken 8 | 1 1 1 1 1 . . . . . 1 1 1 . Scrap Searched 13 | . . 1 . 2 . . . . . 3 2 5 . Spaces Dug 4 | . . . . . 1 1 . . 1 . . 1 . Terrain Destroyed 73 | . 1 1 . 1 1 14 2 6 2 2 17 8 18 Melee 3 | . . . . . 1 1 . . 1 . . . . Projectile 20 | . 1 1 . 1 . . 2 3 1 2 1 1 7 AOE 50 | . . . . . . 13 . 3 . . 16 7 11 Terrain Rammed . | . . . . . . . . . . . . . . Walls Destroyed . | . . . . . . . . . . . . . . Machines Disabled . | . . . . . . . . . . . . . . Actions | -11 -10 -10 -10 -9 -8 -8 -8 -8 -7 -7 -7 -7 -7 --------- Run | Yrd Mat Min Exi Min Mat Gar Mat Gar Fac Low Low Zio Dee Total 8024 | 57 824 430 304 458 1119 780 573 371 522 428 332 1270 556 Wait 1002 | . 116 3 3 26 380 81 133 81 14 6 2 84 73 Move 6235 | 47 628 413 280 418 610 515 383 243 447 392 309 1153 397 Hop . | . . . . . . . . . . . . . . Pick Up 113 | 3 19 2 7 1 18 14 7 6 5 7 2 9 13 Fast Attach 29 | 6 2 . . . 5 1 . 2 4 . . 2 7 Attach 60 | . 1 . 1 1 8 8 4 4 4 4 6 2 17 Detach 18 | . 2 . . . 3 . . 3 2 . 2 1 5 Swap 141 | . 7 . 3 5 22 41 11 9 20 4 2 6 11 Drop 93 | . 6 . 10 . 19 9 5 1 10 8 . 9 16 Fire 275 | . 43 12 . 7 46 73 30 13 15 7 9 4 16 Melee 7 | . . . . . 1 4 . . 1 . . . 1 Ram . | . . . . . . . . . . . . . . Kick . | . . . . . . . . . . . . . . Crush 2 | 1 . . . . 1 . . . . . . . . Escape Stasis 33 | . . . . . . 24 . 9 . . . . . Rewire . | . . . . . . . . . . . . . . Trap 16 | . . . . . 6 10 . . . . . . . Miscellaneous . | . . . . . . . . . . . . . . Route ------- -11/Scrapyard -10/Materials (discovered 4 exits: [*Mat x2] / [*Min] / [*Sub]) -10/Mines (discovered 3 exits: [*Mat] / *Exi / [*Sub]) -10/Exiles -9/Mines -8/Materials -8/Garrison (discovered 3 exits: *Mat x3) -8/Materials (discovered 2 exits: *Fac / Gar) -8/Garrison -7/Factory (discovered 4 exits: Sto x2 / *Low x2) -7/Lower Caves -7/Lower Caves (discovered 2 exits: [*Fac] / [*Zio]) -7/Zion (discovered 2 exits: [*Dee] / [*Pro]) -7/Deep Caves History --------- Turn | Location | Event 5 | -11/Scrapyard | Discovered new exit (range 14) 83 | -11/Scrapyard | Entered Materials 303 | -10/Materials | Build established: Mutant 399 | -10/Materials | Discovered new exit (range 7) 411 | -10/Materials | Central database locked down 555 | -10/Materials | Discovered new exit (range 13) 583 | -10/Materials | Derelicts attacked the area 737 | -10/Materials | Discovered new exit (range 8) 1265 | -10/Materials | Discovered new exit (range 16) 1424 | -10/Materials | Entered Mines 1543 | -10/Mines | YI-UF0 nonchalantly dropped a Grenade Launcher on the ground 1724 | -10/Mines | Found a Scrap Suit stashed away for nefarious purposes 1727 | -10/Mines | Found Scrap Suit 1744 | -10/Mines | Learned location of Storage (-7) 1760 | -10/Mines | Assisted by bots powering up and referring to "LRC-V3" 1926 | -10/Mines | Deemed a non-threat by the Exiles lab entrance 1928 | -10/Mines | Discovered new exit (range 5) 1972 | -10/Mines | Discovered new exit (range 8) 2130 | -10/Mines | Discovered new exit (range 6) 2188 | -10/Mines | Entered Exiles 2188 | -10/Exiles | Accompanied by 2 allies 2230 | -10/Exiles | Met 8R-AWN 2260 | -10/Exiles | Met EX-HEX 2311 | -10/Exiles | Met EX-BIN 2330 | -10/Exiles | Aligned with FarCom system 2332 | -10/Exiles | Given EX-Vault access code 2374 | -10/Exiles | Opened EX-Vault 2387 | -10/Exiles | Found YOLO Cannon 2417 | -10/Exiles | Found AWS/Thermal 2428 | -10/Exiles | Found AWS/Gauss 2459 | -10/Exiles | Warned to stay clear of 0b10 Research branches 2550 | -10/Exiles | Met EX-DEC 2572 | -10/Exiles | Learned location of Zion (-7) 2618 | -10/Exiles | Discovered new exit (range 10) 2634 | -10/Exiles | Stole three prototypes: AWS/Thermal, YOLO Cannon, AWS/Gauss 2634 | -10/Exiles | Entered Mines 2634 | -9/Mines | Accompanied by 2 allies 2742 | -9/Mines | Core integrity fell below 50% 2763 | -9/Mines | Discovered new exit (range 15) 3236 | -9/Mines | Entered Materials 3236 | -8/Materials | Evolved 4 slots: Utility x4 3903 | -8/Materials | Build established: Skirmisher 4555 | -8/Materials | Garrison activated, responded to threat 4647 | -8/Materials | Identified exit to Garrison 4647 | -8/Materials | Entered Garrison 4775 | -8/Garrison | Triggered checkpoint 5019 | -8/Garrison | Build established: Mutant 5164 | -8/Garrison | Triggered checkpoint 5256 | -8/Garrison | Discovered new exit (range 8) 5341 | -8/Garrison | Discovered new exit (range 8) 5375 | -8/Garrison | Triggered checkpoint 5385 | -8/Garrison | Garrison Relay disabled 5470 | -8/Garrison | Lost 3 parts (1n2w) 5496 | -8/Garrison | Rescued AZ-K3N 5591 | -8/Garrison | Triggered checkpoint 5635 | -8/Garrison | Triggered checkpoint 5745 | -8/Garrison | Triggered checkpoint 5766 | -8/Garrison | Garrison Relay disabled 5787 | -8/Garrison | Discovered new exit (range 8) 5797 | -8/Garrison | Garrison Relay disabled 5880 | -8/Garrison | Entered Materials 6271 | -8/Materials | Build established: Hacker-Skirmisher 6423 | -8/Materials | Core integrity fell below 50% 6455 | -8/Materials | Discovered new exit (range 15) 6530 | -8/Materials | Lost 4 parts (1p2n1w) 6633 | -8/Materials | Identified exit to Garrison 6633 | -8/Materials | Entered Garrison 6784 | -8/Garrison | Triggered checkpoint 6785 | -8/Garrison | Triggered checkpoint 6826 | -8/Garrison | Build established: Hacker-Mutant 6840 | -8/Garrison | Core integrity fell below 20% 6900 | -8/Garrison | Spotted B-75 Beast 6900 | -8/Garrison | Spotted B-75 Beast 7229 | -8/Garrison | Discovered new exit (range 15) 7282 | -8/Garrison | Entered Factory 7282 | -7/Factory | Evolved 2 slots: Utility x2 7283 | -7/Factory | Identified exit to Storage 7284 | -7/Factory | FarCom data flow suspended 7330 | -7/Factory | Build established: Mutant 7368 | -7/Factory | Identified exit to Lower Caves 7738 | -7/Factory | Build established: Scavenger-Mutant 8070 | -7/Factory | Entered Lower Caves 8072 | -7/Lower Caves | Encountered a Master Thief 8077 | -7/Lower Caves | Met a Warlord Commander 8078 | -7/Lower Caves | Learned location of Warlord (-4) 8079 | -7/Lower Caves | Warlord Commander delivered Encrypted Comm Array 8081 | -7/Lower Caves | Found Encrypted Comm Array 8171 | -7/Lower Caves | Learned 4 Factory zone layouts 8423 | -7/Lower Caves | Spotted B-75 Beast 8435 | -7/Lower Caves | Discovered new exit (range 5) 8437 | -7/Lower Caves | Encountered a Warlord checkpoint 8458 | -7/Lower Caves | Destroyed B-75 Beast 8594 | -7/Lower Caves | Entered another Lower Caves area 8596 | -7/Lower Caves | Encountered a Master Thief 8596 | -7/Lower Caves | Encountered a Master Thief 8597 | -7/Lower Caves | AWS/Gauss stolen by Master Thief 8597 | -7/Lower Caves | AWS/Thermal stolen by Master Thief 8621 | -7/Lower Caves | Discovered new exit (range 10) 8752 | -7/Lower Caves | Attracted the attention of an 0b10 checkpoint 8907 | -7/Lower Caves | Discovered new exit (range 9) 8913 | -7/Lower Caves | Encountered a Warlord checkpoint 8920 | -7/Lower Caves | Learned Factory interactive machine intel 9038 | -7/Lower Caves | Entered Zion 9188 | -7/Zion | Discovered new exit (range 15) 9410 | -7/Zion | Learned location of Extension (-6) 9530 | -7/Zion | Learned Factory machine intel 9576 | -7/Zion | Gained Derelict followers 9693 | -7/Zion | Given A8's code to call for help 10004 | -7/Zion | Found Prototype Special Weapon 10007 | -7/Zion | Found Prototype Special Weapon 10010 | -7/Zion | Found Prototype Special Weapon 10014 | -7/Zion | Found Prototype Special Weapon 10015 | -7/Zion | Identified RU-N14's Throwing Claymores (x4) 10152 | -7/Zion | Met Imprinter 10193 | -7/Zion | Imprinted 10195 | -7/Zion | Declared Zion's savior 10868 | -7/Zion | Discovered new exit (range 3) 10868 | -7/Zion | Saw the warning signs outside the Deep Caves entrance 10910 | -7/Zion | Entered Deep Caves 10910 | -7/Deep Caves | Accompanied by 9 allies 11045 | -7/Deep Caves | Z-Facility disabled 11124 | -7/Deep Caves | Attacked by Z-Imprinter 11155 | -7/Deep Caves | Destroyed Z-Imprinter 11159 | -7/Deep Caves | Lost 3 allies 11180 | -7/Deep Caves | Lost 6 parts (2p4u) 11236 | -7/Deep Caves | Found Prototype Protection 11236 | -7/Deep Caves | Identified Zio. Weapon Casing 11589 | -7/Deep Caves | Spotted Golem 11597 | -7/Deep Caves | Destroyed Golem 11627 | -7/Deep Caves | Lost 3 parts (3u) 11642 | -7/Deep Caves | Spotted Golem 11648 | -7/Deep Caves | Destroyed Golem 11685 | -7/Deep Caves | Triggered Deep Caves wall 11685 | -7/Deep Caves | Spotted Assembler 11687 | -7/Deep Caves | Spotted Assembler 11694 | -7/Deep Caves | Core integrity fell below 50% 11706 | -7/Deep Caves | Destroyed Assembler 11722 | -7/Deep Caves | Destroyed 32 combat bots 11727 | -7/Deep Caves | Released all parts (3) 11728 | -7/Deep Caves | Core integrity fell below 20% 11730 | -7/Deep Caves | Destroyed by as-68169 with Assembled Gauss Rifle Last Messages --------------- 11719_ Dropped Zio. Laser-M. 11720_ as-10415 released from Mobile Assembly Unit. 11720_ Wheel destroyed. 11720_ Penetrated by Slug. 11720_ Med. Treads destroyed. 11721_ Dropped Exp. Heat Sink. 11721_ Dropped Com. Wheel+. 11724_ Penetrated by Slug. 11725_ Weapon Cycler destroyed. 11725_ Critical hit (Burn: +80). 11727_ Released Exp. Heat Sink. 11727_ Released Huge Storage Unit. 11727_ Released Great Maul. 11727_ Dropped Encrypted Comm Array. 11728_ Acquired RU-N14's Throwing Claymores. 11728_ Penetrated by Slug. 11729_ Extracted 45 matter. 11730_ as-95405 released from Mobile Assembly Unit. Map ----- +----------------------------------------------------+ | ??????????????????????????????????????????????? | | ??????????????????????????????????????????????? | | ???????????????????? ?????????????????????????? | | ?????????????????# ? ?????????????????????????? | | ?????????????? ? ??##?????????????????????? | | ???????????? # ?? #?????????????????????? | | ?????????? ?? #?????????????????????? | | ??????????" #? ??????????????????????? | | ?????????% ## #?????????????????????? | | ????????? !# #?????????????????????? | | ????????" ?????????????????????? | | ????????# ??????????????????????? | | ?????????" ??????????????????????? | | ?????????" #??????????????????????? | | ?????????" ???????????????????????? | | ?????????" #?###???????????????????? | | ????????"" #?# #???????????????#???? | | ??????### !! ! ### ####???????????? ##?? | | ????""" l ] # #???????????? ## | | ??? /| ##??????????????? | | ??? ![!!! ###????????????? # | | ??? |[==! #????????????? # | | ??? = a! ###?????????????# # | | ??? /! ##??????????????# # | | ???? a !a #??????????????# # | | ????% a ! @ #??????????????# # | | ?????"" #????????????### # | | ??????### Aa= ! = #???????????## # | | ????????"" s ! #???????????# | | ?????????" #??????????## | | ?????????" b #????????### ### | | ?????????" ##??????## ##?? | | ?????????" = = ! #??????# #??? | | ????????? / #?????## #??? | | ????????? / / s #??#### ##??? | | ????????? #### ##???? | | ?????????% * * ##???? | | ??????????" * g #???? | | ?????????? #???? | | ?????????? ## #???? | | ??????????? ## ##???? | | ??????????? #### ##????? | | ??????????? # # #??## ##?????? | | ???????????? #### ## ## ##???########??????? | | ???????????? #????# ?# ?###??????????????????? | | ???????????????????#??# ??????????????????????? | | ???????????????????????#??????????????????????? | | | | | | | +----------------------------------------------------+ Best States ------------- Heat Dissipation 86 Energy Generation 18 Energy Capacity 875 Matter Stores 300 Matter Capacity 300 Sight Range 16 Terrain Scan Range 16 Terrain Scan Density 10 Additional Mass Support 9 Armor Coverage 825 Weapon Shielding 100 Weapon Cycling 30 Evasion (%) 50 Recoil Reduction 2 Energy Filtering 30 Particle Charging 20 Offensive Hacking 20 Item Schematics ----------------- Huge Storage Unit | -8/Materials | Scanalyzed Powered Hammer | -7/Zion | Archive Power Sword | -7/Zion | Archive Lgt. Angular Momentum Engine | -7/Zion | Archive Recalibrator | -7/Zion | Archive Hvy. Plasma Cannon | -7/Zion | Archive Imp. Salvage Targeting Computer | -7/Zion | Archive Lyr. Heavy Armor Plating | -7/Zion | Archive Imp. Remote Datajack | -7/Zion | Archive Transmission Jammer | -7/Zion | Archive Imp. Proton Missile Launcher | -7/Zion | Archive System Restoration Module | -7/Zion | Archive Flexi-carbon Leg | -7/Zion | Archive Imp. Trap Extractor | -7/Zion | Archive Phase Cannon | -7/Zion | Archive Imp. Medium Armor Plating | -7/Zion | Archive Robot Schematics ------------------ K-01 Serf | -7/Zion | Archive A-02 Transporter | -7/Zion | Archive H-55 Commando | -7/Zion | Archive Y-72 Warden | -7/Zion | Archive Fabricated ------------ Nothing Repaired ---------- Nothing Studied --------- Com. Wheel | -8/Materials | Hacked Lgt. Treads | -8/Materials | Hacked Alien Tech Used ----------------- None Achievements -------------- None Challenges ------------ None Game ------ Seed SalvageAntisysRipper Manual? 0 Play Time 01:51:06 Cumulative 301.6 hours Start 2026.09.19 @ 21:27:07 End 2026.09.21 @ 00:04:21 Sessions 7 Manual Loads 0 Difficulty Rogue Special Mode None Game No. 158 Rogue 158 Adventurer 0 Explorer 0 Win Type - Total 7 Types 6/0/0/1/0/0/0/0/0/0 Lore% 81 Gallery% 72 Achievement% 64 Wizard Run 0 Options --------- Layout 1 ASCII 0 Keyboard 0 Movement Numpad Keybinds 0 Fullscreen 1 Font 24/Smallcaps Map View 50x35 Zoom Use 0% Tactical HUD 1 Map Filters NONE Filters NONE Steam 1 RUN: b3112488-ec24-4b71-bb94-20cd1fb26b4c